[Event "FIDE World School-ch G-17 2025"]
[Site "Vrnjacka Banja"]
[Date "2025.03.26"]
[Round "7.1"]
[White "Buyankhishig, Batpelden"]
[Black "Kirtadze, Anastasia"]
[Result "0-1"]
[Annotator "TA"]
[ECO "E11"]
[WhiteElo "1907"]
[BlackElo "2180"]
[PlyCount "110"]
[EventDate "2025.03.19"]
[EventType "swiss"]
[EventCountry "SRB"]
[SourceTitle "playchess.com"]
[Source "ChessBase"]
[SourceQuality "1"]
[TimeControl "5400+30"]

{[%evp 10,110,37,34,35,35,44,14,21,22,30,37,82,50,33,35,77,79,102,72,101,92,121,86,92,80,128,139,137,122,129,101,99,104,96,96,96,101,120,94,126,123,160,82,92,39,106,14,8,0,0,-93,0,-224,0,-36,0,7,0,0,2,-60,-80,-39,-58,-56,0,-18,-46,-66,0,-83,0,0,0,0,0,-72,-80,-99,-89,-97,-31,-40,0,-107,-88,-149,-136,-130,-116,-106,-112,-103,0,-74,-80,-29990,-29991,-29991,-308,-29992,-29993]} 1. d4 {[%emt 0:00:01]} Nf6 {[%emt 0:00:05]} 2. c4 {[%emt 0:00:11]} e6 {[%emt 0:00:08]} 3. Nf3 {[%emt 0:00:21]} Bb4+ {[%emt 0:00:54]} 4. Nbd2 {[%emt 0:00:28]} O-O {[%emt 0:00:45]} 5. a3 {[%emt 0:02:41]} Be7 {[%emt 0:00:26]} 6. e4 {[%emt 0:00:39]} d6 {[%emt 0:00:42] E11: Bogo-Indian.} 7. Be2 {[%emt 0:00:43] 7.Be2 is better than 7.Bd3.} Nfd7 {[%emt 0:00:55]} 8. O-O {[%emt 0:07:14]} e5 {[%emt 0:01:32] The position is equal.} 9. Nb1 {[%emt 0:00:56][%cal Bd2b1,Bb1c3,Bc3b5][%mdl 32]} Nc6 $146 {[%emt 0:10:38]} ({Predecessor:} 9... exd4 10. Nxd4 Nc6 11. Be3 Bf6 12. Nc3 Nc5 13. Nxc6 bxc6 14. Bxc5 dxc5 15. Qc2 Rb8 {0-1 Celik,H (2431)-Ivic,V (2622) EU-ch 24th Petrovac 2024 (8)}) 10. d5 {[%emt 0:05:35]} Ncb8 {[%emt 0:01:08]} 11. b4 {[%emt 0:05:34]} a5 {[%emt 0:06:23]} 12. Bb2 {[%emt 0:01:56]} b6 {[%emt 0:05:48]} 13. Nc3 {[%emt 0:02:05]} g6 {[%emt 0:02:52]} 14. Nb5 {[%emt 0:05:57]} Ba6 {[%emt 0:14:12]} 15. Qc2 {[%emt 0:13:29]} f5 {[%emt 0:06:20]} 16. Nd2 {[%emt 0:04:56]} f4 {[%emt 0:03:43]} 17. Nb3 {[%emt 0:07:14]} Bxb5 {[%emt 0:08:01]} (17... c6 $142) 18. cxb5 $16 {[%emt 0:00:02]} a4 {[%emt 0:00:16]} 19. Nd2 {[%emt 0:02:23]} Nf6 {[%emt 0:01:47]} 20. g3 {[%emt 0:07:08]} Nh5 {[%emt 0:06:22]} 21. Bxh5 {[%emt 0:08:09]} gxh5 {[%emt 0:00:01]} 22. gxf4 {[%emt 0:00:16]} Rxf4 {[%emt 0:00:46]} 23. Kh1 {[%emt 0:00:53]} Nd7 {[%emt 0:08:02]} 24. Nc4 {[%emt 0:03:05]} Kh8 {[%emt 0:04:22]} 25. Ne3 {[%emt 0:02:11]} Rf8 {[%emt 0:10:31]} 26. f4 {[%emt 0:04:09]} (26. Nf5) 26... Bf6 {[%emt 0:00:21]} 27. Ng2 {[%emt 0:03:16] White has space advantage and is better} (27. Rac1 $16) 27... h4 {[%emt 0:02:15]} (27... Qe8 $14) 28. fxe5 {[%emt 0:02:36]} (28. Rf3 $16) 28... Bxe5 $11 {[%emt 0:00:45]} 29. Nf4 {[%emt 0:03:10]} Qf6 {[%emt 0:02:44] Prevents Ne6} 30. Rab1 {[%emt 0:04:25]} (30. Nd3 $1 $11 Qxf1+ 31. Rxf1 Rxf1+ 32. Kg2) 30... Rf7 {[%emt 0:01:20]} (30... Bxb2 $1 $17 31. Qxb2 Ne5) 31. Qe2 $2 {[%emt 0:02:51]} (31. Nd3 $11 {and White is okay.} Qxf1+ 32. Rxf1 Rxf1+ 33. Kg2) 31... Bxb2 $2 {[%emt 0:01:09]} ({Black should play} 31... Raf8 $19 {...Bxb2 is the strong threat.} 32. Bxe5 (32. Ne6 $2 Qxf1+ 33. Rxf1 Rxf1+ 34. Kg2 h3+ 35. Kxh3 R1f2 $19) 32... Nxe5 (32... Qxe5 $2 33. Ne6 $19)) 32. Qxb2 {[%emt 0:00:07]} (32. Ne6 Qg6 33. Qxb2+ Ne5 $18) (32. Nd3 $5) 32... Ne5 {[%emt 0:00:29] Inhibits Ng6+.} (32... Qxb2 {simplifies} 33. Rxb2 Raf8 34. Rbf2 Ne5) 33. Nd3 {[%emt 0:01:16]} Nf3 $1 {[%emt 0:00:45][%cal Oa8f8]} 34. Qxf6+ {[%emt 0:00:41]} Rxf6 {[%emt 0:00:01]} 35. Rf2 {[%emt 0:00:39] Dodges Nd2} ({Better is} 35. e5 $11 dxe5 (35... Nxe5 $2 {perishes.} 36. Rxf6 Nxd3 37. Rbf1 $18) 36. Nxe5 (36. Ne1 e4 $17)) 35... Raf8 $1 $15 {[%emt 0:00:24]} 36. Rbf1 {[%emt 0:00:06][%cal Oe4e5] Strongly threatening e5!.} Kg7 $1 {[%emt 0:00:42]} 37. Rg2+ $1 {[%emt 0:00:47]} Rg6 {[%emt 0:00:37]} (37... Kh6 $1 $15 38. Rg4 h3) 38. Rc2 {[%emt 0:00:43]} (38. Rgf2 $5 Rgf6 $8 39. Rg2+ Kh6 40. Rg4 $15) 38... Rf7 {[%emt 0:00:28]} 39. Nb2 {[%emt 0:00:29]} Kh6 {[%emt 0:00:46]} (39... h3 $1 $15 40. Nxa4 Rgf6) 40. Nc4 {[%emt 0:00:28] [#]} (40. Nxa4 $11 Rfg7 41. Rcc1) 40... Rfg7 {[%emt 0:00:29]} 41. Rcc1 $1 $11 {[%emt 0:00:26]} Nd4 $40 {[%emt 0:00:33][%cal Og7e7][%mdl 128] Black attacks.} 42. Ne3 {[%emt 0:00:27]} Kh5 {[%emt 0:00:23][%cal Og6g5]} 43. Nf5 {[%emt 0:00:38]} (43. Rcd1 $1 $11 Nxb5 44. Nf5) 43... Nxf5 $17 {[%emt 0:00:08]} 44. Rxf5+ {[%emt 0:00:01][%mdl 4096] Endgame KRR-KRR} Rg5 {[%emt 0:00:21]} 45. Rf4 {[%emt 0:00:44]} Rg2 {[%emt 0:01:04]} (45... h6 $17 46. Rf2 Re7) 46. Rf5+ $1 $15 {[%emt 0:00:12]} R2g5 {[%emt 0:00:18]} 47. Rf8 {[%emt 0:00:32] [#]} (47. Rf4 $1 $11 {keeps the balance.}) 47... Re7 $1 $17 {[%emt 0:00:36]} 48. Rc8 {[%emt 0:00:51]} (48. Rff1 $142) 48... Rxe4 {[%emt 0:00:20]} 49. R8xc7 {[%emt 0:00:09] [#]} h6 {[%emt 0:00:27]} (49... Rxd5 50. Rxh7+ Kg4 51. Rg1+ Kf3 52. Rf7+ Ke2 53. Ra7) 50. R7c6 {[%emt 0:00:47][%csl LRb6,LRd6]} Rxd5 {[%emt 0:00:27]} 51. Rxb6 {[%emt 0:00:04]} Rd2 {[%emt 0:00:42]} (51... Rd3 $17 52. Kg1 Red4 (52... Rxa3 $2 53. Rxd6 Rxb4 54. b6 $19)) 52. Rbc6 {[%emt 0:00:20]} (52. Rb8 $1 $11) 52... Ree2 {[%emt 0:00:28] Black is more active.} 53. b6 $2 {[%emt 0:00:05][%mdl 8192]} (53. h3 $17) 53... Rxh2+ {[%emt 0:00:11]} 54. Kg1 {[%emt 0:00:00]} Rdg2+ {[%emt 0:00:27]} 55. Kf1 {[%emt 0:00:04]} h3 {[%emt 0:00:04] Weighted Error Value: White=0.43/Black=0.25 (precise)   Loses game:     	White=2     	---        Missed win:     	---       	Black=1      Mistake:       	White=10    	Black=8      Inaccurate:     	White=3     	Black=8      OK:         	White=16    	Black=8      Best:        	White=3     	Black=7      Strong:       	White=3     	Black=4} 0-1

[Event "FIDE World School-ch G-17 2025"]
[Site "Vrnjacka Banja"]
[Date "2025.03.26"]
[Round "7.2"]
[White "Seyhan, Pelin"]
[Black "Newansa, M Esandi"]
[Result "0-1"]
[Annotator "NA RC"]
[ECO "D11"]
[WhiteElo "1924"]
[BlackElo "1801"]
[PlyCount "120"]
[EventDate "2025.03.19"]
[EventType "swiss"]
[EventCountry "SRB"]
[SourceTitle "playchess.com"]
[Source "ChessBase"]
[SourceQuality "1"]
[TimeControl "5400+30"]

1. Nf3 {[%emt 0:00:04]} d5 {[%emt 0:01:19]} 2. c4 {[%emt 0:00:06]} c6 {[%emt 0:00:09]} 3. d4 {[%emt 0:00:07]} Nf6 {[%emt 0:00:06]} 4. Qc2 {[%emt 0:00:04]} dxc4 {[%emt 0:04:46]} 5. e4 {[%emt 0:00:33]} b5 {[%emt 0:05:38]} 6. b3 {[%emt 0:00:13]} cxb3 {[%emt 0:01:35]} 7. axb3 {[%emt 0:00:07]} e6 {[%emt 0:02:03]} 8. Bd3 {[%emt 0:00:07]} Bb7 {[%emt 0:01:18]} 9. O-O {[%emt 0:00:10]} Be7 {[%emt 0:04:55]} 10. Nc3 {[%emt 0:10:28]} a6 {[%emt 0:03:36]} 11. Rd1 {[%emt 0:05:26]} Qc8 {[%emt 0:06:36]} 12. e5 {[%emt 0:09:36]} Nfd7 {[%emt 0:05:17]} 13. Bxh7 {[%emt 0:10:28]} Nb6 {[%emt 0:11:05]} 14. Bg5 {[%emt 0:05:28]} c5 {[%emt 0:05:46]} 15. Bxe7 {[%emt 0:09:34]} Kxe7 {[%emt 0:11:01]} 16. dxc5 {[%emt 0:05:28]} N6d7 {[%emt 0:05:26]} 17. Be4 {[%emt 0:07:44]} Nxc5 {[%emt 0:06:11]} 18. Bxb7 {[%emt 0:00:09]} Nxb7 {[%emt 0:00:12]} 19. Qd2 {[%emt 0:01:25]} Nd7 {[%emt 0:03:31]} 20. Nxb5 {[%emt 0:03:51]} Rd8 {[%emt 0:05:37]} 21. Nd6 {[%emt 0:06:03]} Nxd6 {[%emt 0:01:10]} 22. Qxd6+ {[%emt 0:00:58]} Ke8 {[%emt 0:00:06]} 23. Qd3 {[%emt 0:04:42]} Nf8 {[%emt 0:01:20]} 24. Qe4 {[%emt 0:01:02]} Qc3 {[%emt 0:02:09]} 25. Nd2 {[%emt 0:03:07]} Ng6 {[%emt 0:03:46]} 26. Nc4 {[%emt 0:02:00]} Qxb3 {[%emt 0:01:53]} 27. Nd6+ {[%emt 0:00:30]} Kf8 {[%emt 0:00:08]} 28. Rd3 {[%emt 0:01:58]} Qb2 {[%emt 0:00:59]} 29. Re1 {[%emt 0:00:09]} Qxe5 {[%emt 0:01:15]} 30. Qb4 {[%emt 0:07:20]} a5 {[%emt 0:00:18]} 31. Qd2 {[%emt 0:00:10]} Qf4 {[%emt 0:00:47]} 32. Qd1 {[%emt 0:01:29]} Qb4 {[%emt 0:02:20]} 33. Re4 {[%emt 0:00:54]} Qb6 {[%emt 0:00:44]} 34. Rxe6 {[%emt 0:01:43]} Nf4 {[%emt 0:01:42]} 35. Qf3 {[%emt 0:00:31]} Ra7 {[%emt 0:00:31]} 36. Rb3 {[%emt 0:02:18]} Qxb3 {[%emt 0:00:41]} 37. Qxb3 {[%emt 0:00:07]} Nxe6 {[%emt 0:00:07]} 38. h4 {[%emt 0:00:57]} Rad7 {[%emt 0:00:29]} 39. Nf5 {[%emt 0:00:33]} Kg8 {[%emt 0:00:54]} 40. h5 {[%emt 0:00:15]} Nd4 {[%emt 0:00:15]} 41. Nxd4 {[%emt 0:01:12]} Rxd4 {[%emt 0:00:05]} 42. Qg3 {[%emt 0:00:32]} R8d5 {[%emt 0:00:46]} 43. Qb8+ {[%emt 0:00:14]} Kh7 {[%emt 0:00:13]} 44. Qa7 {[%emt 0:01:17]} Rd1+ {[%emt 0:00:31]} 45. Kh2 {[%emt 0:00:01]} Rxh5+ {[%emt 0:00:14]} 46. Kg3 {[%emt 0:00:01]} Rf5 {[%emt 0:00:14]} 47. f3 {[%emt 0:00:18]} g6 {[%emt 0:00:33]} 48. Qa8 {[%emt 0:00:46]} Rd2 {[%emt 0:00:19]} 49. Qe8 {[%emt 0:00:32]} Kg7 {[%emt 0:04:24]} 50. Qe3 {[%emt 0:00:16]} Rfd5 {[%emt 0:00:00]} 51. Qc3+ {[%emt 0:00:19]} R2d4 {[%emt 0:00:00]} 52. Kh2 {[%emt 0:01:22]} a4 {[%emt 0:00:00]} 53. f4 {[%emt 0:00:24]} Kh7 {[%emt 0:00:00]} 54. g3 {[%emt 0:00:14]} Rd3 {[%emt 0:00:00]} 55. Qc7 {[%emt 0:01:00]} Rd7 {[%emt 0:00:00]} 56. Qc4 {[%emt 0:00:34]} a3 {[%emt 0:00:00]} 57. f5 {[%emt 0:00:14]} a2 {[%emt 0:00:03]} 58. Qh4+ {[%emt 0:01:24]} Kg8 {[%emt 0:00:06]} 59. Qa4 {[%emt 0:00:06]} Rd1 {[%emt 0:00:21]} 60. Qa8+ {[%emt 0:00:53]} Rd8 {[%emt 0:00:11]} 0-1

[Event "FIDE World School-ch G-17 2025"]
[Site "Vrnjacka Banja"]
[Date "2025.03.26"]
[Round "7.3"]
[White "Wang, Chloe Heather"]
[Black "Altynbek, Aiaru"]
[Result "0-1"]
[Annotator "NA RC"]
[ECO "B15"]
[WhiteElo "1892"]
[BlackElo "2005"]
[PlyCount "76"]
[EventDate "2025.03.19"]
[EventType "swiss"]
[EventCountry "SRB"]
[SourceTitle "playchess.com"]
[Source "ChessBase"]
[SourceQuality "1"]
[TimeControl "5400+30"]

1. e4 {[%emt 0:00:11]} c6 {[%emt 0:00:13]} 2. d4 {[%emt 0:00:14]} d5 {[%emt 0:00:05]} 3. Nc3 {[%emt 0:00:07]} dxe4 {[%emt 0:00:03]} 4. Nxe4 {[%emt 0:00:06]} Nf6 {[%emt 0:00:02]} 5. Nxf6+ {[%emt 0:00:14]} exf6 {[%emt 0:00:03]} 6. c3 {[%emt 0:00:08]} Bd6 {[%emt 0:00:06]} 7. Bd3 {[%emt 0:00:07]} O-O {[%emt 0:00:06]} 8. Qc2 {[%emt 0:00:06]} Re8+ {[%emt 0:00:03]} 9. Ne2 {[%emt 0:00:06]} h5 {[%emt 0:00:04]} 10. Be3 {[%emt 0:00:27]} Nd7 {[%emt 0:00:23]} 11. O-O-O {[%emt 0:00:10]} Nf8 {[%emt 0:00:35]} 12. Kb1 {[%emt 0:00:32]} Be6 {[%emt 0:02:52]} 13. c4 {[%emt 0:01:36]} a6 {[%emt 0:02:43]} 14. Nc3 {[%emt 0:04:40]} Bb4 {[%emt 0:03:26]} 15. Ne4 {[%emt 0:05:47]} Be7 {[%emt 0:17:23]} 16. Be2 {[%emt 0:28:21]} Qa5 {[%emt 0:15:18]} 17. Bd2 {[%emt 0:07:43]} Qc7 {[%emt 0:16:36]} 18. Bc3 {[%emt 0:16:16]} Red8 {[%emt 0:05:59]} 19. Qd2 {[%emt 0:07:59]} h4 {[%emt 0:10:55]} 20. g3 {[%emt 0:05:33]} h3 {[%emt 0:00:50]} 21. f4 {[%emt 0:00:25]} Rd7 {[%emt 0:08:11]} 22. g4 {[%emt 0:07:26]} b5 {[%emt 0:02:24]} 23. f5 {[%emt 0:07:15]} Bxc4 {[%emt 0:00:17]} 24. Bxc4 {[%emt 0:02:01]} bxc4 {[%emt 0:00:01]} 25. g5 {[%emt 0:02:02]} fxg5 {[%emt 0:01:27]} 26. Nxg5 {[%emt 0:00:28]} Rd5 {[%emt 0:01:50]} 27. Rhf1 {[%emt 0:00:47]} c5 {[%emt 0:03:24]} 28. Ne4 {[%emt 0:01:24]} f6 {[%emt 0:01:15]} 29. Qe3 {[%emt 0:00:59]} Rad8 {[%emt 0:00:48]} 30. Kc1 {[%emt 0:01:27]} Qd7 {[%emt 0:00:38]} 31. Qxh3 {[%emt 0:00:43]} cxd4 {[%emt 0:00:10]} 32. Bd2 {[%emt 0:00:13]} c3 {[%emt 0:00:43]} 33. Bh6 {[%emt 0:00:39]} Qb5 {[%emt 0:03:51]} 34. Rf2 {[%emt 0:00:41]} Rc8 {[%emt 0:01:57]} 35. b3 {[%emt 0:00:34]} Ba3+ {[%emt 0:00:14]} 36. Kc2 {[%emt 0:00:28]} d3+ {[%emt 0:00:40]} 37. Rxd3 {[%emt 0:00:07]} Qxd3+ {[%emt 0:00:28]} 38. Qxd3 {[%emt 0:00:04]} Rxd3 {[%emt 0:00:04]} 0-1

[Event "FIDE World School-ch G-17 2025"]
[Site "Vrnjacka Banja"]
[Date "2025.03.26"]
[Round "7.4"]
[White "Kusakina, Uliana"]
[Black "Maslova, Anastasiya Yar"]
[Result "0-1"]
[Annotator "NA RC"]
[ECO "D43"]
[WhiteElo "1855"]
[BlackElo "1938"]
[PlyCount "64"]
[EventDate "2025.03.19"]
[EventType "swiss"]
[EventCountry "SRB"]
[SourceTitle "playchess.com"]
[Source "ChessBase"]
[SourceQuality "1"]
[TimeControl "5400+30"]

1. d4 {[%emt 0:00:05]} Nf6 {[%emt 0:00:06]} 2. Nf3 {[%emt 0:00:14]} e6 {[%emt 0:00:29]} 3. c4 {[%emt 0:00:32]} d5 {[%emt 0:03:01]} 4. Nc3 {[%emt 0:00:28]} c6 {[%emt 0:00:46]} 5. Bf4 {[%emt 0:00:56]} dxc4 {[%emt 0:02:08]} 6. a4 {[%emt 0:01:22]} Bb4 {[%emt 0:01:52]} 7. Qc2 {[%emt 0:06:34]} a5 {[%emt 0:08:09]} 8. Bd2 {[%emt 0:15:40]} O-O {[%emt 0:04:50]} 9. e3 {[%emt 0:03:55]} b5 {[%emt 0:02:13]} 10. e4 {[%emt 0:16:22]} h6 {[%emt 0:14:55]} 11. g4 {[%emt 0:12:08]} e5 {[%emt 0:11:18]} 12. dxe5 {[%emt 0:11:02]} Bxg4 {[%emt 0:05:25]} 13. Be2 {[%emt 0:07:17]} Bxf3 {[%emt 0:08:03]} 14. Bxf3 {[%emt 0:00:25]} Nfd7 {[%emt 0:00:32]} 15. axb5 {[%emt 0:01:56]} Nxe5 {[%emt 0:08:19]} 16. Be2 {[%emt 0:00:12]} Nbd7 {[%emt 0:05:15]} 17. f4 {[%emt 0:04:23]} Qh4+ {[%emt 0:01:02]} 18. Kd1 {[%emt 0:00:05]} Ng4 {[%emt 0:03:41]} 19. Kc1 {[%emt 0:00:47]} Nc5 {[%emt 0:02:55]} 20. Bxc4 {[%emt 0:00:27]} cxb5 {[%emt 0:00:42]} 21. Bxb5 {[%emt 0:00:53]} Rab8 {[%emt 0:01:16]} 22. Bc4 {[%emt 0:02:04]} Rfc8 {[%emt 0:02:38]} 23. Be1 {[%emt 0:01:03]} Qf6 {[%emt 0:01:07]} 24. Nd5 {[%emt 0:00:30]} Qd8 {[%emt 0:02:13]} 25. Bxb4 {[%emt 0:01:39]} axb4 {[%emt 0:00:15]} 26. Rg1 {[%emt 0:03:33]} b3 {[%emt 0:02:15]} 27. Qe2 {[%emt 0:01:01]} Nf2 {[%emt 0:02:16]} 28. Kb1 {[%emt 0:06:06]} Ncxe4 {[%emt 0:01:02]} 29. Rc1 {[%emt 0:00:58]} Rxc4 {[%emt 0:01:54]} 30. Rxc4 {[%emt 0:00:57]} Qxd5 {[%emt 0:00:09]} 31. Rc7 {[%emt 0:01:00]} Rd8 {[%emt 0:00:48]} 32. Raa7 {[%emt 0:00:41]} Qd1+ {[%emt 0:00:14]} 0-1

[Event "FIDE World School-ch G-17 2025"]
[Site "Vrnjacka Banja"]
[Date "2025.03.26"]
[Round "7.5"]
[White "Nauanova Zhaniya"]
[Black "Orazalina, Nursulu"]
[Result "1-0"]
[Annotator "NA RC"]
[ECO "A21"]
[WhiteElo "1905"]
[BlackElo "1895"]
[PlyCount "129"]
[EventDate "2025.03.19"]
[EventType "swiss"]
[EventCountry "SRB"]
[SourceTitle "playchess.com"]
[Source "ChessBase"]
[SourceQuality "1"]
[TimeControl "5400+30"]

1. c4 {[%emt 0:00:04]} e5 {[%emt 0:00:06]} 2. Nc3 {[%emt 0:00:11]} d6 {[%emt 0:00:08]} 3. Nf3 {[%emt 0:00:13]} f5 {[%emt 0:00:08]} 4. g3 {[%emt 0:00:05]} Nf6 {[%emt 0:00:09]} 5. d4 {[%emt 0:00:07]} e4 {[%emt 0:00:45]} 6. Nh4 {[%emt 0:00:14]} Be7 {[%emt 0:03:48]} 7. Ng2 {[%emt 0:01:10]} O-O {[%emt 0:01:59]} 8. Bg5 {[%emt 0:00:19]} Be6 {[%emt 0:02:30]} 9. e3 {[%emt 0:00:39]} c6 {[%emt 0:03:39]} 10. Be2 {[%emt 0:02:10]} Na6 {[%emt 0:17:58]} 11. h4 {[%emt 0:10:08]} Nc7 {[%emt 0:04:12]} 12. Nf4 {[%emt 0:00:10]} Bf7 {[%emt 0:00:12]} 13. Rc1 {[%emt 0:02:16]} Ne6 {[%emt 0:07:10]} 14. Nxe6 {[%emt 0:06:18]} Bxe6 {[%emt 0:00:07]} 15. O-O {[%emt 0:07:58]} h6 {[%emt 0:06:19]} 16. Bxf6 {[%emt 0:00:36]} Rxf6 {[%emt 0:09:23]} 17. d5 {[%emt 0:05:28]} Bf7 {[%emt 0:15:06]} 18. dxc6 {[%emt 0:02:54]} bxc6 {[%emt 0:00:10]} 19. Kg2 {[%emt 0:10:54]} g5 {[%emt 0:01:50]} 20. hxg5 {[%emt 0:01:06]} hxg5 {[%emt 0:00:07]} 21. Rh1 {[%emt 0:01:51]} Qf8 {[%emt 0:04:51]} 22. Rh2 {[%emt 0:12:32]} Rh6 {[%emt 0:04:37]} 23. Rxh6 {[%emt 0:04:19]} Qxh6 {[%emt 0:00:06]} 24. Qa4 {[%emt 0:01:22]} d5 {[%emt 0:01:48]} 25. cxd5 {[%emt 0:05:08]} cxd5 {[%emt 0:00:05]} 26. Qd7 {[%emt 0:02:30]} Qe6 {[%emt 0:03:27]} 27. Qxe6 {[%emt 0:00:44]} Bxe6 {[%emt 0:00:06]} 28. Nb5 {[%emt 0:01:16]} Bd8 {[%emt 0:04:25]} 29. Rc6 {[%emt 0:04:40]} Bf7 {[%emt 0:05:06]} 30. Nd4 {[%emt 0:07:35]} f4 {[%emt 0:00:18]} 31. exf4 {[%emt 0:01:21]} gxf4 {[%emt 0:00:25]} 32. gxf4 {[%emt 0:00:49]} Bb6 {[%emt 0:00:26]} 33. Nf5 {[%emt 0:01:13]} d4 {[%emt 0:00:55]} 34. Nh6+ {[%emt 0:01:19]} Kg7 {[%emt 0:00:07]} 35. Nxf7 {[%emt 0:00:26]} Kxf7 {[%emt 0:00:04]} 36. Bc4+ {[%emt 0:00:17]} Kg7 {[%emt 0:00:40]} 37. Re6 {[%emt 0:02:29]} e3 {[%emt 0:01:14]} 38. fxe3 {[%emt 0:00:35]} dxe3 {[%emt 0:00:05]} 39. f5 {[%emt 0:02:10]} Rf8 {[%emt 0:01:24]} 40. Bd3 {[%emt 0:02:25]} Rd8 {[%emt 0:00:50]} 41. f6+ {[%emt 0:01:13]} Kf7 {[%emt 0:00:51]} 42. Bc4 {[%emt 0:00:04]} Rd2+ {[%emt 0:00:10]} 43. Kh3 {[%emt 0:01:55]} Rd4 {[%emt 0:00:21]} 44. Bb3 {[%emt 0:00:32]} Kf8 {[%emt 0:00:54]} 45. f7 {[%emt 0:00:25]} Kxf7 {[%emt 0:00:20]} 46. Rxb6+ {[%emt 0:00:12]} Kf8 {[%emt 0:00:24]} 47. Re6 {[%emt 0:00:30]} Rd2 {[%emt 0:00:07]} 48. Rxe3 {[%emt 0:00:06]} Rxb2 {[%emt 0:00:05]} 49. Rc3 {[%emt 0:00:33]} a5 {[%emt 0:00:24]} 50. Rc8+ {[%emt 0:00:10]} Ke7 {[%emt 0:00:14]} 51. Ra8 {[%emt 0:00:05]} Kd6 {[%emt 0:00:26]} 52. Rxa5 {[%emt 0:00:04]} Kc6 {[%emt 0:00:05]} 53. Kg3 {[%emt 0:00:32]} Kb6 {[%emt 0:00:06]} 54. Rh5 {[%emt 0:00:09]} Rb1 {[%emt 0:00:12]} 55. Kf3 {[%emt 0:00:10]} Rc1 {[%emt 0:00:19]} 56. Ke3 {[%emt 0:00:13]} Rc3+ {[%emt 0:00:15]} 57. Kd4 {[%emt 0:00:14]} Rg3 {[%emt 0:00:22]} 58. Kc4 {[%emt 0:00:37]} Rg4+ {[%emt 0:00:12]} 59. Kc3 {[%emt 0:00:08]} Rg3+ {[%emt 0:00:09]} 60. Kb4 {[%emt 0:00:06]} Rg4+ {[%emt 0:00:15]} 61. Bc4 {[%emt 0:00:13]} Rg1 {[%emt 0:00:13]} 62. Rh6+ {[%emt 0:00:13]} Ka7 {[%emt 0:00:10]} 63. Ka5 {[%emt 0:01:16]} Rg7 {[%emt 0:00:25]} 64. Rf6 {[%emt 0:00:35]} Rg5+ {[%emt 0:00:55]} 65. Bb5 {[%emt 0:00:08]} 1-0

[Event "FIDE World School-ch G-17 2025"]
[Site "Vrnjacka Banja"]
[Date "2025.03.26"]
[Round "7.6"]
[White "Vojinovic, Anastasija"]
[Black "Dumitrache, Elisa-Andreea"]
[Result "1/2-1/2"]
[Annotator "NA RC"]
[ECO "B19"]
[WhiteElo "1857"]
[BlackElo "1650"]
[PlyCount "52"]
[EventDate "2025.03.19"]
[EventType "swiss"]
[EventCountry "SRB"]
[SourceTitle "playchess.com"]
[Source "ChessBase"]
[SourceQuality "1"]
[TimeControl "5400+30"]

1. e4 {[%emt 0:00:08]} c6 {[%emt 0:00:05]} 2. d4 {[%emt 0:00:11]} d5 {[%emt 0:00:05]} 3. Nc3 {[%emt 0:00:07]} dxe4 {[%emt 0:00:08]} 4. Nxe4 {[%emt 0:00:08]} Bf5 {[%emt 0:00:10]} 5. Ng3 {[%emt 0:00:09]} Bg6 {[%emt 0:00:05]} 6. Nf3 {[%emt 0:01:18]} Nd7 {[%emt 0:00:11]} 7. h4 {[%emt 0:00:26]} h6 {[%emt 0:00:26]} 8. Bd3 {[%emt 0:00:32]} Bxd3 {[%emt 0:00:37]} 9. Qxd3 {[%emt 0:00:09]} Ngf6 {[%emt 0:01:01]} 10. Bd2 {[%emt 0:06:02]} e6 {[%emt 0:00:57]} 11. O-O-O {[%emt 0:04:47]} Qc7 {[%emt 0:02:43]} 12. Ne4 {[%emt 0:04:34]} O-O-O {[%emt 0:02:21]} 13. g3 {[%emt 0:09:26]} Nxe4 {[%emt 0:01:21]} 14. Qxe4 {[%emt 0:00:16]} Nf6 {[%emt 0:03:55]} 15. Qe2 {[%emt 0:04:44]} Bd6 {[%emt 0:01:20]} 16. c4 {[%emt 0:03:51]} c5 {[%emt 0:04:27]} 17. Bc3 {[%emt 0:02:43]} Qb6 {[%emt 0:26:24]} 18. Ne5 {[%emt 0:19:39]} Rhf8 {[%emt 0:02:23]} 19. Ng4 {[%emt 0:22:38]} Nxg4 {[%emt 0:04:15]} 20. Qxg4 {[%emt 0:00:09]} g6 {[%emt 0:00:41]} 21. d5 {[%emt 0:01:38]} h5 {[%emt 0:09:53]} 22. Qe4 {[%emt 0:03:19]} exd5 {[%emt 0:03:11]} 23. Rxd5 {[%emt 0:01:29]} Rfe8 {[%emt 0:01:32]} 24. Qd3 {[%emt 0:01:59]} Be5 {[%emt 0:03:42]} 25. Bxe5 {[%emt 0:09:23]} Rxe5 {[%emt 0:00:11]} 26. Rxd8+ {[%emt 0:01:33]} Qxd8 {[%emt 0:00:09]} 1/2-1/2